[Event "Titled Tuesday Blitz March 07 Late 2023"]
[White "Rego, Pedro Filipe"]
[Black "Hajiyev, Kanan"]
[WhiteFideId "1904310"]
[BlackFideId "13404148"]
[WhiteElo "2193"]
[BlackElo "2103"]
[Result "1-0"]
[Round "11"]
[TimeControl "180+2"]
[Date "2023.03.07"]
[WhiteClock "0:00:42"]
[BlackClock "0:00:02"]

1. e4 {[%clk 0:03:00]}  c6 {[%clk 0:02:42]} 2. d4 {[%clk 0:02:59]}  d5 {[%clk 0:02:43]} 3. e5 {[%clk 0:02:59]}  a6 {[%clk 0:02:42]} 4. c4 {[%clk 0:02:55]}  Bf5 {[%clk 0:02:42]} 5. Nc3 {[%clk 0:02:54]}  e6 {[%clk 0:02:42]} 6. h4 {[%clk 0:02:54]}  h5 {[%clk 0:02:42]} 7. Nf3 {[%clk 0:02:53]}  Bb4 {[%clk 0:02:40]} 8. Be2 {[%clk 0:02:52]}  dxc4 {[%clk 0:02:39]} 9. Bxc4 {[%clk 0:02:52]}  Ne7 {[%clk 0:02:40]} 10. Bg5 {[%clk 0:02:51]}  Nd7 {[%clk 0:02:39]} 11. O-O {[%clk 0:02:50]}  Nb6 {[%clk 0:02:39]} 12. Bd3 {[%clk 0:02:46]}  Bxd3 {[%clk 0:02:39]} 13. Qxd3 {[%clk 0:02:47]}  Bxc3 {[%clk 0:02:35]} 14. bxc3 {[%clk 0:02:45]}  O-O {[%clk 0:02:27]} 15. Bd2 {[%clk 0:02:15]}  Nf5 {[%clk 0:02:21]} 16. c4 {[%clk 0:02:08]}  Nxh4 {[%clk 0:02:04]} 17. Ng5 {[%clk 0:02:05]}  g6 {[%clk 0:01:51]} 18. Ne4 {[%clk 0:02:00]}  Nd7 {[%clk 0:01:45]} 19. Bg5 {[%clk 0:01:59]}  Nxe5 {[%clk 0:01:38]} 20. Qg3 {[%clk 0:01:31]}  Qxd4 {[%clk 0:00:56]} 21. Qxh4 {[%clk 0:01:23]}  Qxc4 {[%clk 0:00:34]} 22. Bf6 {[%clk 0:01:08]}  Ng4 {[%clk 0:00:26]} 23. Rfe1 {[%clk 0:00:57]}  Rfe8 {[%clk 0:00:18]} 24. f3 {[%clk 0:00:55]}  b5 {[%clk 0:00:05]} 25. fxg4 {[%clk 0:00:54]}  Qd5 {[%clk 0:00:04]} 26. Rad1 {[%clk 0:00:44]}  Qxa2 {[%clk 0:00:02]} 27. Qg5 {[%clk 0:00:42]} 1-0


[Site "https://www.chess.com"]

[Event "Titled Tuesday Blitz March 07 Late 2023"]
[White "Karttunen, Mika"]
[Black "Vargas Rodriguez, Wilver"]
[WhiteFideId "502081"]
[BlackFideId "3509672"]
[WhiteElo "2396"]
[BlackElo "2238"]
[Result "1-0"]
[Round "11"]
[TimeControl "180+2"]
[Date "2023.03.07"]
[WhiteClock "0:00:06"]
[BlackClock "0:00:01"]

1. d4 {[%clk 0:03:00]}  Nf6 {[%clk 0:02:57]} 2. c4 {[%clk 0:03:00]}  e6 {[%clk 0:02:57]} 3. Nc3 {[%clk 0:02:59]}  Bb4 {[%clk 0:02:54]} 4. e3 {[%clk 0:03:00]}  O-O {[%clk 0:02:48]} 5. Bd3 {[%clk 0:02:59]}  c5 {[%clk 0:02:41]} 6. Nf3 {[%clk 0:02:59]}  Bxc3+ {[%clk 0:02:36]} 7. bxc3 {[%clk 0:02:58]}  b6 {[%clk 0:02:36]} 8. e4 {[%clk 0:02:26]}  Ne8 {[%clk 0:02:26]} 9. e5 {[%clk 0:02:22]}  f5 {[%clk 0:02:25]} 10. exf6 {[%clk 0:02:09]}  Nxf6 {[%clk 0:02:21]} 11. O-O {[%clk 0:01:36]}  Bb7 {[%clk 0:02:18]} 12. Re1 {[%clk 0:01:36]}  Qc7 {[%clk 0:01:52]} 13. Ne5 {[%clk 0:01:20]}  Nc6 {[%clk 0:01:38]} 14. Bb2 {[%clk 0:00:41]}  d6 {[%clk 0:01:32]} 15. Nf3 {[%clk 0:00:38]}  Rae8 {[%clk 0:01:30]} 16. Ng5 {[%clk 0:00:31]}  e5 {[%clk 0:01:16]} 17. d5 {[%clk 0:00:30]}  Nd8 {[%clk 0:00:55]} 18. Qc2 {[%clk 0:00:30]}  g6 {[%clk 0:00:49]} 19. f3 {[%clk 0:00:18]}  Qe7 {[%clk 0:00:48]} 20. Bc1 {[%clk 0:00:18]}  Bc8 {[%clk 0:00:46]} 21. Bd2 {[%clk 0:00:18]}  Nf7 {[%clk 0:00:40]} 22. Ne4 {[%clk 0:00:13]}  Nxe4 {[%clk 0:00:39]} 23. Bxe4 {[%clk 0:00:13]}  Ng5 {[%clk 0:00:39]} 24. Bd3 {[%clk 0:00:13]}  Bf5 {[%clk 0:00:38]} 25. Kh1 {[%clk 0:00:12]}  Bxd3 {[%clk 0:00:32]} 26. Qxd3 {[%clk 0:00:13]}  Nf7 {[%clk 0:00:31]} 27. Re2 {[%clk 0:00:12]}  Qf6 {[%clk 0:00:31]} 28. Rae1 {[%clk 0:00:12]}  Kg7 {[%clk 0:00:29]} 29. h3 {[%clk 0:00:12]}  Qd8 {[%clk 0:00:28]} 30. Re4 {[%clk 0:00:12]}  Nh6 {[%clk 0:00:26]} 31. Kh2 {[%clk 0:00:10]}  Nf5 {[%clk 0:00:25]} 32. g3 {[%clk 0:00:10]}  h6 {[%clk 0:00:23]} 33. Kg2 {[%clk 0:00:10]}  Re7 {[%clk 0:00:21]} 34. h4 {[%clk 0:00:11]}  Ref7 {[%clk 0:00:21]} 35. Rg4 {[%clk 0:00:10]}  Kh7 {[%clk 0:00:20]} 36. h5 {[%clk 0:00:09]}  gxh5 {[%clk 0:00:20]} 37. Rh4 {[%clk 0:00:07]}  Rg8 {[%clk 0:00:16]} 38. Rh3 {[%clk 0:00:07]}  Qf6 {[%clk 0:00:15]} 39. Reh1 {[%clk 0:00:07]}  Qg6 {[%clk 0:00:14]} 40. Kf2 {[%clk 0:00:05]}  h4 {[%clk 0:00:13]} 41. g4 {[%clk 0:00:05]}  Ng3 {[%clk 0:00:12]} 42. Qxg6+ {[%clk 0:00:05]}  Rxg6 {[%clk 0:00:11]} 43. R1h2 {[%clk 0:00:06]}  Ne4+ {[%clk 0:00:10]} 44. Ke2 {[%clk 0:00:06]}  Nxd2 {[%clk 0:00:06]} 45. Kxd2 {[%clk 0:00:07]}  Kg7 {[%clk 0:00:05]} 46. Ke3 {[%clk 0:00:07]}  Rf4 {[%clk 0:00:05]} 47. Rxh4 {[%clk 0:00:07]}  Rxc4 {[%clk 0:00:05]} 48. Kd3 {[%clk 0:00:07]}  Rf4 {[%clk 0:00:04]} 49. Ke3 {[%clk 0:00:07]}  Rc4 {[%clk 0:00:05]} 50. Kd3 {[%clk 0:00:07]}  Rf4 {[%clk 0:00:05]} 51. R4h3 {[%clk 0:00:07]}  Ra4 {[%clk 0:00:04]} 52. Rf2 {[%clk 0:00:05]}  b5 {[%clk 0:00:04]} 53. Ke3 {[%clk 0:00:05]}  Ra3 {[%clk 0:00:04]} 54. Ke4 {[%clk 0:00:05]}  Rf6 {[%clk 0:00:02]} 55. f4 {[%clk 0:00:05]}  Ra4+ {[%clk 0:00:01]} 56. Ke3 {[%clk 0:00:06]} 1-0


[Site "https://www.chess.com"]

[Event "Titled Tuesday Blitz March 07 Late 2023"]
[White "Kohler, Aran"]
[Black "Pinheiro, Iung Alicio de O."]
[WhiteFideId "1002856"]
[BlackFideId "2104350"]
[WhiteElo "2242"]
[BlackElo "2283"]
[Result "0-1"]
[Round "11"]
[TimeControl "180+2"]
[Date "2023.03.07"]
[WhiteClock "0:00:02"]
[BlackClock "0:00:04"]

1. Nf3 {[%clk 0:02:59]}  c5 {[%clk 0:01:16]} 2. e4 {[%clk 0:02:56]}  Nc6 {[%clk 0:01:15]} 3. Bb5 {[%clk 0:02:56]}  g6 {[%clk 0:01:15]} 4. O-O {[%clk 0:02:52]}  Bg7 {[%clk 0:01:14]} 5. Re1 {[%clk 0:02:53]}  Nf6 {[%clk 0:01:14]} 6. Bxc6 {[%clk 0:02:45]}  dxc6 {[%clk 0:01:09]} 7. e5 {[%clk 0:02:39]}  Nd5 {[%clk 0:01:09]} 8. h3 {[%clk 0:02:34]}  O-O {[%clk 0:01:08]} 9. d3 {[%clk 0:02:35]}  Nc7 {[%clk 0:01:03]} 10. Nbd2 {[%clk 0:02:25]}  Ne6 {[%clk 0:01:02]} 11. a4 {[%clk 0:02:21]}  a5 {[%clk 0:00:49]} 12. Ne4 {[%clk 0:02:13]}  b6 {[%clk 0:00:49]} 13. Ned2 {[%clk 0:02:14]}  Ra7 {[%clk 0:00:46]} 14. b3 {[%clk 0:02:13]}  f6 {[%clk 0:00:45]} 15. Bb2 {[%clk 0:02:13]}  Nd4 {[%clk 0:00:38]} 16. Bxd4 {[%clk 0:01:51]}  cxd4 {[%clk 0:00:39]} 17. Nc4 {[%clk 0:01:52]}  c5 {[%clk 0:00:36]} 18. Qe2 {[%clk 0:01:49]}  f5 {[%clk 0:00:26]} 19. e6 {[%clk 0:01:48]}  Bb7 {[%clk 0:00:26]} 20. Nfe5 {[%clk 0:01:45]}  Bd5 {[%clk 0:00:25]} 21. Nd7 {[%clk 0:01:38]}  Rxd7 {[%clk 0:00:16]} 22. exd7 {[%clk 0:01:37]}  Rf7 {[%clk 0:00:16]} 23. Nd6 {[%clk 0:01:24]}  Rf8 {[%clk 0:00:10]} 24. Nc4 {[%clk 0:01:19]}  Bf6 {[%clk 0:00:09]} 25. Ne5 {[%clk 0:01:11]}  Kg7 {[%clk 0:00:06]} 26. f4 {[%clk 0:01:10]}  Qc7 {[%clk 0:00:07]} 27. Kh2 {[%clk 0:01:10]}  Rd8 {[%clk 0:00:06]} 28. g3 {[%clk 0:01:10]}  Bc6 {[%clk 0:00:07]} 29. Nxc6 {[%clk 0:01:07]}  Qxc6 {[%clk 0:00:07]} 30. Qe6 {[%clk 0:01:06]}  Qc7 {[%clk 0:00:07]} 31. Re2 {[%clk 0:01:05]}  Rxd7 {[%clk 0:00:07]} 32. Rae1 {[%clk 0:01:05]}  Rd6 {[%clk 0:00:08]} 33. Qc4 {[%clk 0:01:02]}  Qd7 {[%clk 0:00:07]} 34. h4 {[%clk 0:00:59]}  h6 {[%clk 0:00:07]} 35. Re6 {[%clk 0:00:57]}  g5 {[%clk 0:00:08]} 36. Rxd6 {[%clk 0:00:56]}  Qxd6 {[%clk 0:00:08]} 37. Re6 {[%clk 0:00:55]}  Qc7 {[%clk 0:00:08]} 38. fxg5 {[%clk 0:00:42]}  hxg5 {[%clk 0:00:09]} 39. h5 {[%clk 0:00:42]}  f4 {[%clk 0:00:07]} 40. Re2 {[%clk 0:00:30]}  fxg3+ {[%clk 0:00:06]} 41. Kg2 {[%clk 0:00:30]}  Qf4 {[%clk 0:00:07]} 42. Qe6 {[%clk 0:00:28]}  g4 {[%clk 0:00:06]} 43. Qe4 {[%clk 0:00:26]}  Qg5 {[%clk 0:00:06]} 44. Qg6+ {[%clk 0:00:26]}  Qxg6 {[%clk 0:00:06]} 45. hxg6 {[%clk 0:00:26]}  Kxg6 {[%clk 0:00:07]} 46. Kxg3 {[%clk 0:00:26]}  Kg5 {[%clk 0:00:06]} 47. Re6 {[%clk 0:00:25]}  Kf5 {[%clk 0:00:05]} 48. Re4 {[%clk 0:00:23]}  Be5+ {[%clk 0:00:05]} 49. Kh4 {[%clk 0:00:21]}  g3 {[%clk 0:00:05]} 50. Kh3 {[%clk 0:00:21]}  e6 {[%clk 0:00:05]} 51. Kg2 {[%clk 0:00:20]}  Bd6 {[%clk 0:00:05]} 52. Kf3 {[%clk 0:00:21]}  Be5 {[%clk 0:00:06]} 53. Rg4 {[%clk 0:00:20]}  Bd6 {[%clk 0:00:06]} 54. Rg8 {[%clk 0:00:20]}  Ke5 {[%clk 0:00:06]} 55. Kxg3 {[%clk 0:00:18]}  Kd5+ {[%clk 0:00:07]} 56. Kf3 {[%clk 0:00:18]}  Bc7 {[%clk 0:00:06]} 57. Rc8 {[%clk 0:00:18]}  Kd6 {[%clk 0:00:06]} 58. Ke4 {[%clk 0:00:18]}  Kd7 {[%clk 0:00:06]} 59. Rh8 {[%clk 0:00:18]}  Kc6 {[%clk 0:00:07]} 60. Rh7 {[%clk 0:00:19]}  Kd6 {[%clk 0:00:08]} 61. Rg7 {[%clk 0:00:19]}  Bd8 {[%clk 0:00:08]} 62. Rg6 {[%clk 0:00:19]}  Bc7 {[%clk 0:00:09]} 63. Kf4 {[%clk 0:00:18]}  Bd8 {[%clk 0:00:09]} 64. Kg4 {[%clk 0:00:18]}  Bc7 {[%clk 0:00:09]} 65. Rg5 {[%clk 0:00:18]}  Bd8 {[%clk 0:00:09]} 66. Rh5 {[%clk 0:00:19]}  Bc7 {[%clk 0:00:09]} 67. Kg5 {[%clk 0:00:19]}  Ke5 {[%clk 0:00:08]} 68. Kg6+ {[%clk 0:00:20]}  Kf4 {[%clk 0:00:09]} 69. Kf6 {[%clk 0:00:20]}  Ke3 {[%clk 0:00:09]} 70. Kxe6 {[%clk 0:00:19]}  Kd2 {[%clk 0:00:10]} 71. Rh7 {[%clk 0:00:18]}  Bf4 {[%clk 0:00:09]} 72. Rb7 {[%clk 0:00:18]}  Kxc2 {[%clk 0:00:09]} 73. Rxb6 {[%clk 0:00:18]}  Kxd3 {[%clk 0:00:08]} 74. Kd5 {[%clk 0:00:18]}  Kc3 {[%clk 0:00:08]} 75. Kxc5 {[%clk 0:00:18]}  d3 {[%clk 0:00:08]} 76. Rc6 {[%clk 0:00:16]}  d2 {[%clk 0:00:08]} 77. Kb5+ {[%clk 0:00:14]}  Kd3 {[%clk 0:00:08]} 78. Rc8 {[%clk 0:00:14]}  Be3 {[%clk 0:00:07]} 79. Kxa5 {[%clk 0:00:11]}  d1=Q {[%clk 0:00:06]} 80. b4 {[%clk 0:00:10]}  Qd2 {[%clk 0:00:06]} 81. Rd8+ {[%clk 0:00:08]}  Bd4 {[%clk 0:00:06]} 82. Rd5 {[%clk 0:00:09]}  Qh6 {[%clk 0:00:06]} 83. b5 {[%clk 0:00:05]}  Qb6+ {[%clk 0:00:05]} 84. Kb4 {[%clk 0:00:06]}  Ke4 {[%clk 0:00:05]} 85. Rh5 {[%clk 0:00:04]}  Qd6+ {[%clk 0:00:04]} 86. Kc4 {[%clk 0:00:03]}  Qe6+ {[%clk 0:00:03]} 87. Kb4 {[%clk 0:00:02]}  Qe7+ {[%clk 0:00:04]} 0-1


[Site "https://www.chess.com"]

[Event "Titled Tuesday Blitz March 07 Late 2023"]
[White "Carrasco Miranda, Andres"]
[Black "Gamage, Wanshini Vidusama"]
[WhiteFideId "3405990"]
[BlackFideId "9953752"]
[WhiteElo "2183"]
[BlackElo "2201"]
[Result "1-0"]
[Round "11"]
[TimeControl "180+2"]
[Date "2023.03.07"]
[WhiteClock "0:00:57"]
[BlackClock "0:00:28"]

1. d4 {[%clk 0:03:00]}  Nf6 {[%clk 0:02:58]} 2. c4 {[%clk 0:03:00]}  g6 {[%clk 0:02:59]} 3. g3 {[%clk 0:03:01]}  c6 {[%clk 0:02:58]} 4. Bg2 {[%clk 0:03:00]}  d5 {[%clk 0:02:57]} 5. Qa4 {[%clk 0:03:00]}  dxc4 {[%clk 0:02:39]} 6. Qxc4 {[%clk 0:03:01]}  Bg7 {[%clk 0:02:38]} 7. Nf3 {[%clk 0:03:00]}  O-O {[%clk 0:02:32]} 8. O-O {[%clk 0:03:00]}  Nbd7 {[%clk 0:02:32]} 9. Nc3 {[%clk 0:02:59]}  Nb6 {[%clk 0:02:32]} 10. Qb3 {[%clk 0:02:59]}  Be6 {[%clk 0:02:31]} 11. Qc2 {[%clk 0:02:59]}  Bd5 {[%clk 0:02:26]} 12. e3 {[%clk 0:02:54]}  Rc8 {[%clk 0:02:21]} 13. Rd1 {[%clk 0:02:54]}  Re8 {[%clk 0:02:05]} 14. a4 {[%clk 0:02:50]}  a5 {[%clk 0:01:51]} 15. e4 {[%clk 0:02:39]}  Bc4 {[%clk 0:01:52]} 16. b3 {[%clk 0:02:34]}  Ba6 {[%clk 0:01:51]} 17. h3 {[%clk 0:02:28]}  h5 {[%clk 0:01:46]} 18. Be3 {[%clk 0:02:25]}  Qc7 {[%clk 0:01:33]} 19. Ng5 {[%clk 0:02:05]}  e5 {[%clk 0:01:25]} 20. dxe5 {[%clk 0:01:58]}  Qxe5 {[%clk 0:01:19]} 21. Nxf7 {[%clk 0:01:52]}  Kxf7 {[%clk 0:01:06]} 22. Bxb6 {[%clk 0:01:50]}  Nd7 {[%clk 0:00:55]} 23. Rxd7+ {[%clk 0:01:49]}  Re7 {[%clk 0:00:50]} 24. Rxe7+ {[%clk 0:01:40]}  Kxe7 {[%clk 0:00:51]} 25. Rc1 {[%clk 0:01:23]}  Bh6 {[%clk 0:00:43]} 26. Rd1 {[%clk 0:01:08]}  Bg7 {[%clk 0:00:42]} 27. Nd5+ {[%clk 0:01:07]}  Kf7 {[%clk 0:00:37]} 28. Bd4 {[%clk 0:01:04]}  Qe6 {[%clk 0:00:28]} 29. Nf4 {[%clk 0:00:57]} 1-0


[Site "https://www.chess.com"]

[Event "Titled Tuesday Blitz March 07 Late 2023"]
[White "Pasti, Aron"]
[Black "Von Buelow, Georg"]
[WhiteFideId "785857"]
[BlackFideId "4620658"]
[WhiteElo "2173"]
[BlackElo "2115"]
[Result "0-1"]
[Round "11"]
[TimeControl "180+2"]
[Date "2023.03.07"]
[WhiteClock "0:01:32"]
[BlackClock "0:00:37"]

1. e4 {[%clk 0:03:00]}  c5 {[%clk 0:02:37]} 2. d4 {[%clk 0:03:00]}  cxd4 {[%clk 0:02:37]} 3. c3 {[%clk 0:03:00]}  Nf6 {[%clk 0:02:37]} 4. e5 {[%clk 0:02:58]}  Nd5 {[%clk 0:02:36]} 5. cxd4 {[%clk 0:02:59]}  d6 {[%clk 0:02:36]} 6. Nc3 {[%clk 0:02:57]}  Nxc3 {[%clk 0:02:35]} 7. bxc3 {[%clk 0:02:58]}  dxe5 {[%clk 0:02:35]} 8. dxe5 {[%clk 0:02:58]}  Qxd1+ {[%clk 0:02:34]} 9. Kxd1 {[%clk 0:02:59]}  Nc6 {[%clk 0:02:34]} 10. Bb5 {[%clk 0:02:58]}  Bd7 {[%clk 0:02:33]} 11. Nf3 {[%clk 0:02:58]}  Nxe5 {[%clk 0:02:30]} 12. Nxe5 {[%clk 0:02:51]}  Bxb5 {[%clk 0:02:28]} 13. c4 {[%clk 0:02:50]}  Bc6 {[%clk 0:02:27]} 14. Nxc6 {[%clk 0:02:49]}  bxc6 {[%clk 0:02:27]} 15. Kc2 {[%clk 0:02:49]}  e6 {[%clk 0:02:18]} 16. Rd1 {[%clk 0:02:46]}  Bc5 {[%clk 0:02:12]} 17. f3 {[%clk 0:02:40]}  Ke7 {[%clk 0:02:02]} 18. Bf4 {[%clk 0:02:37]}  Rhd8 {[%clk 0:01:55]} 19. Rab1 {[%clk 0:02:33]}  Rxd1 {[%clk 0:01:50]} 20. Kxd1 {[%clk 0:02:34]}  Rd8+ {[%clk 0:01:50]} 21. Ke2 {[%clk 0:02:34]}  Bb6 {[%clk 0:01:42]} 22. Be3 {[%clk 0:02:20]}  c5 {[%clk 0:01:13]} 23. a4 {[%clk 0:02:15]}  Rc8 {[%clk 0:01:03]} 24. a5 {[%clk 0:02:12]}  Bxa5 {[%clk 0:01:02]} 25. Rb7+ {[%clk 0:02:12]}  Rc7 {[%clk 0:01:02]} 26. Bxc5+ {[%clk 0:02:11]}  Kd7 {[%clk 0:01:02]} 27. Rb5 {[%clk 0:02:05]}  Bb6 {[%clk 0:01:00]} 28. Bxb6 {[%clk 0:02:03]}  axb6 {[%clk 0:01:00]} 29. Kd3 {[%clk 0:02:04]}  Kc6 {[%clk 0:01:00]} 30. Rg5 {[%clk 0:02:00]}  g6 {[%clk 0:00:59]} 31. Rg4 {[%clk 0:02:00]}  Ra7 {[%clk 0:00:56]} 32. Rh4 {[%clk 0:01:57]}  h5 {[%clk 0:00:55]} 33. Rf4 {[%clk 0:01:57]}  f5 {[%clk 0:00:54]} 34. h3 {[%clk 0:01:56]}  e5 {[%clk 0:00:46]} 35. Rh4 {[%clk 0:01:54]}  Ra3+ {[%clk 0:00:47]} 36. Ke2 {[%clk 0:01:52]}  Ra2+ {[%clk 0:00:46]} 37. Kf1 {[%clk 0:01:52]}  Rc2 {[%clk 0:00:45]} 38. g3 {[%clk 0:01:41]}  Kc5 {[%clk 0:00:45]} 39. f4 {[%clk 0:01:37]}  Rxc4 {[%clk 0:00:41]} 40. fxe5 {[%clk 0:01:34]}  Rxh4 {[%clk 0:00:40]} 41. gxh4 {[%clk 0:01:35]}  Kd5 {[%clk 0:00:39]} 42. Kf2 {[%clk 0:01:36]}  Kxe5 {[%clk 0:00:40]} 43. Ke3 {[%clk 0:01:36]}  f4+ {[%clk 0:00:39]} 44. Kf3 {[%clk 0:01:36]}  Kf5 {[%clk 0:00:39]} 45. Kf2 {[%clk 0:01:36]}  Ke4 {[%clk 0:00:39]} 46. Ke2 {[%clk 0:01:36]}  f3+ {[%clk 0:00:39]} 47. Kf2 {[%clk 0:01:36]}  Kf4 {[%clk 0:00:40]} 48. Kf1 {[%clk 0:01:36]}  Kg3 {[%clk 0:00:40]} 49. Kg1 {[%clk 0:01:35]}  b5 {[%clk 0:00:39]} 50. Kf1 {[%clk 0:01:35]}  b4 {[%clk 0:00:39]} 51. Ke1 {[%clk 0:01:35]}  b3 {[%clk 0:00:37]} 52. Kd2 {[%clk 0:01:35]}  Kxh4 {[%clk 0:00:37]} 53. Ke3 {[%clk 0:01:32]}  Kg3 {[%clk 0:00:37]} 0-1


[Site "https://www.chess.com"]

[Event "Titled Tuesday Blitz March 07 Late 2023"]
[White "Hartikainen, Jarmo"]
[Black "Smith, Garrett L"]
[WhiteFideId "503134"]
[BlackFideId "2024829"]
[WhiteElo "2190"]
[BlackElo "2254"]
[Result "0-1"]
[Round "11"]
[TimeControl "180+2"]
[Date "2023.03.07"]
[WhiteClock "0:00:02"]
[BlackClock "0:00:30"]

1. e4 {[%clk 0:03:00]}  c5 {[%clk 0:02:59]} 2. c3 {[%clk 0:03:00]}  d5 {[%clk 0:02:59]} 3. exd5 {[%clk 0:03:00]}  Qxd5 {[%clk 0:02:59]} 4. d4 {[%clk 0:03:00]}  Nc6 {[%clk 0:03:00]} 5. Nf3 {[%clk 0:03:01]}  Bf5 {[%clk 0:03:00]} 6. Na3 {[%clk 0:02:59]}  cxd4 {[%clk 0:03:01]} 7. Nb5 {[%clk 0:02:58]}  O-O-O {[%clk 0:03:01]} 8. cxd4 {[%clk 0:02:20]}  e5 {[%clk 0:03:00]} 9. Be3 {[%clk 0:01:30]}  exd4 {[%clk 0:02:53]} 10. Bxd4 {[%clk 0:00:37]}  Bb4+ {[%clk 0:02:11]} 11. Bc3 {[%clk 0:00:36]}  Re8+ {[%clk 0:01:40]} 12. Be2 {[%clk 0:00:34]}  Bd3 {[%clk 0:01:25]} 13. O-O {[%clk 0:00:25]}  Rxe2 {[%clk 0:01:13]} 14. Bxb4 {[%clk 0:00:13]}  Qxb5 {[%clk 0:01:05]} 15. Rc1 {[%clk 0:00:08]}  Re6 {[%clk 0:01:02]} 16. Nd4 {[%clk 0:00:07]}  Qxb4 {[%clk 0:00:46]} 17. Nxe6 {[%clk 0:00:07]}  fxe6 {[%clk 0:00:39]} 18. Qxd3 {[%clk 0:00:07]}  Nf6 {[%clk 0:00:39]} 19. Rfe1 {[%clk 0:00:06]}  Rd8 {[%clk 0:00:38]} 20. Qh3 {[%clk 0:00:06]}  Kb8 {[%clk 0:00:34]} 21. Qxe6 {[%clk 0:00:05]}  Re8 {[%clk 0:00:31]} 22. Qxe8+ {[%clk 0:00:02]}  Nxe8 {[%clk 0:00:31]} 23. Rxe8+ {[%clk 0:00:03]}  Kc7 {[%clk 0:00:31]} 24. Ree1 {[%clk 0:00:03]}  Qxb2 {[%clk 0:00:31]} 25. a4 {[%clk 0:00:01]}  a5 {[%clk 0:00:30]} 26. h3 {[%clk 0:00:02]}  Qb4 {[%clk 0:00:30]} 0-1


[Site "https://www.chess.com"]

[Event "Titled Tuesday Blitz March 07 Late 2023"]
[White "Rodriguez Santiago, Jaime"]
[Black "Vargas Pereda, Jesus Manue"]
[WhiteFideId "3100898"]
[BlackFideId "5115710"]
[WhiteElo "2025"]
[BlackElo "1914"]
[Result "1-0"]
[Round "11"]
[TimeControl "180+2"]
[Date "2023.03.07"]
[WhiteClock "0:02:13"]
[BlackClock "0:01:49"]

1. c4 {[%clk 0:03:00]}  Nf6 {[%clk 0:02:58]} 2. Nc3 {[%clk 0:02:59]}  b6 {[%clk 0:02:58]} 3. e4 {[%clk 0:02:56]}  Bb7 {[%clk 0:02:58]} 4. d3 {[%clk 0:02:57]}  e6 {[%clk 0:02:58]} 5. Nge2 {[%clk 0:02:57]}  Bb4 {[%clk 0:02:58]} 6. g3 {[%clk 0:02:57]}  O-O {[%clk 0:02:58]} 7. Bg2 {[%clk 0:02:57]}  d5 {[%clk 0:02:59]} 8. e5 {[%clk 0:02:56]}  Nfd7 {[%clk 0:02:51]} 9. O-O {[%clk 0:02:53]}  Bxc3 {[%clk 0:02:48]} 10. Nxc3 {[%clk 0:02:47]}  Nxe5 {[%clk 0:02:48]} 11. cxd5 {[%clk 0:02:45]}  exd5 {[%clk 0:02:48]} 12. d4 {[%clk 0:02:45]}  Ng6 {[%clk 0:02:45]} 13. f4 {[%clk 0:02:39]}  Na6 {[%clk 0:02:42]} 14. f5 {[%clk 0:02:38]}  Ne7 {[%clk 0:02:37]} 15. f6 {[%clk 0:02:38]}  Ng6 {[%clk 0:02:36]} 16. fxg7 {[%clk 0:02:37]}  Kxg7 {[%clk 0:02:37]} 17. Be3 {[%clk 0:02:35]}  c5 {[%clk 0:02:31]} 18. Qd2 {[%clk 0:02:33]}  Re8 {[%clk 0:02:26]} 19. Bh6+ {[%clk 0:02:31]}  Kg8 {[%clk 0:02:26]} 20. Qf2 {[%clk 0:02:19]}  Qd7 {[%clk 0:01:49]} 21. Qf6 {[%clk 0:02:13]} 1-0


[Site "https://www.chess.com"]

[Event "Titled Tuesday Blitz March 07 Late 2023"]
[White "Curtis, John"]
[Black "Needleman, Gaston"]
[WhiteFideId "3200256"]
[BlackFideId "113735"]
[WhiteElo "2203"]
[BlackElo "2224"]
[Result "1-0"]
[Round "11"]
[TimeControl "180+2"]
[Date "2023.03.07"]
[WhiteClock "0:01:58"]
[BlackClock "0:02:35"]

1. e4 {[%clk 0:03:00]}  c5 {[%clk 0:03:00]} 2. Nf3 {[%clk 0:03:00]}  Nc6 {[%clk 0:03:01]} 3. d4 {[%clk 0:03:00]}  cxd4 {[%clk 0:03:02]} 4. c3 {[%clk 0:03:00]}  e6 {[%clk 0:03:03]} 5. cxd4 {[%clk 0:03:00]}  d5 {[%clk 0:03:04]} 6. Nc3 {[%clk 0:02:57]}  dxe4 {[%clk 0:03:03]} 7. Nxe4 {[%clk 0:02:57]}  Nf6 {[%clk 0:03:04]} 8. Nxf6+ {[%clk 0:02:56]}  gxf6 {[%clk 0:03:05]} 9. Bd3 {[%clk 0:02:55]}  Bb4+ {[%clk 0:03:06]} 10. Bd2 {[%clk 0:02:53]}  Bxd2+ {[%clk 0:03:06]} 11. Qxd2 {[%clk 0:02:54]}  Bd7 {[%clk 0:03:03]} 12. Rd1 {[%clk 0:02:52]}  Qb6 {[%clk 0:03:03]} 13. Bc4 {[%clk 0:02:35]}  O-O-O {[%clk 0:02:59]} 14. O-O {[%clk 0:02:33]}  Rhg8 {[%clk 0:02:58]} 15. d5 {[%clk 0:02:31]}  Ne5 {[%clk 0:02:54]} 16. Nxe5 {[%clk 0:02:29]}  fxe5 {[%clk 0:02:54]} 17. Qc3 {[%clk 0:02:22]}  f6 {[%clk 0:02:49]} 18. dxe6 {[%clk 0:02:16]}  Bc6 {[%clk 0:02:48]} 19. Bd5 {[%clk 0:02:15]}  Kb8 {[%clk 0:02:46]} 20. Bxc6 {[%clk 0:02:14]}  Qxc6 {[%clk 0:02:46]} 21. Qxc6 {[%clk 0:02:10]}  bxc6 {[%clk 0:02:47]} 22. f4 {[%clk 0:02:09]}  exf4 {[%clk 0:02:43]} 23. Rxd8+ {[%clk 0:02:07]}  Rxd8 {[%clk 0:02:42]} 24. Rxf4 {[%clk 0:02:07]}  Kc7 {[%clk 0:02:39]} 25. Rxf6 {[%clk 0:02:07]}  Rd1+ {[%clk 0:02:35]} 26. Rf1 {[%clk 0:02:06]}  Rd2 {[%clk 0:02:35]} 27. Rf7+ {[%clk 0:02:04]}  Kb6 {[%clk 0:02:35]} 28. e7 {[%clk 0:02:02]}  Re2 {[%clk 0:02:35]} 29. Kf1 {[%clk 0:02:01]}  Re6 {[%clk 0:02:34]} 30. g4 {[%clk 0:01:59]}  a5 {[%clk 0:02:34]} 31. h4 {[%clk 0:01:59]}  Rxe7 {[%clk 0:02:35]} 32. Rxe7 {[%clk 0:01:58]} 1-0


[Site "https://www.chess.com"]